fUST/lending_fUST_20250220
["ID","MTS","AMOUNT","RATE_DAILY","PERIOD"]
[353769648,1740027040930,-500.0,0.00013973,2]
[353769649,1740027040940,-500.0,0.00013973,2]
[353769650,1740027040949,-500.0,0.00013973,2]
[353769651,1740027040959,-337.508987,0.00013987,2]
[353769652,1740027040968,-151.0,0.00013987,2]
[353769653,1740027040977,-161.396341,0.00013987,2]
[353769654,1740027040989,-151.0,0.00013987,2]
[353769655,1740027040999,-161.396341,0.00013987,2]
[353769656,1740027041009,-1127.758018,0.00013987,2]
[353769657,1740027041018,-1127.758018,0.00013987,2]
[353769658,1740027041027,-674.791754,0.00013987,2]
[353769659,1740027041036,-674.791754,0.00013987,2]
[353769660,1740027041047,-107479.88070585,0.00013987,2]
[353769661,1740027041056,-295.005091,0.00013992,2]
[353769662,1740027041066,-295.005091,0.00013992,2]
[353769663,1740027041076,-452.936363,0.00013992,2]
[353769664,1740027041085,-452.936363,0.00013992,2]
[353769665,1740027041095,-151.0,0.00013992,2]
[353769666,1740027041105,-151.0,0.00013992,2]
[353769667,1740027041115,-53591.28846941,0.00013992,2]
[353769668,1740027041501,-500.0,0.00013698,2]
[353769669,1740027041511,-22.63734845,0.00013698,2]
[353769670,1740027041595,-477.36265155,0.00013698,2]
[353769671,1740027041605,-500.0,0.00013698,2]
[353769672,1740027041616,-216.47844601,0.0001378,2]
[353769673,1740027041671,-283.52155399,0.0001378,2]
[353769674,1740027041680,-500.0,0.0001378,2]
[353769675,1740027041689,-500.0,0.00013863,2]
[353769676,1740027041699,-500.0,0.00013945,2]
[353769677,1740027041708,-53888.59223644,0.00013992,2]
[353769678,1740027041718,-107479.88070585,0.00013993,2]
[353769679,1740027041728,-151.0,0.00013993,2]
[353769680,1740027041739,-2247.277575,0.00013993,2]
[353769681,1740027041748,-2247.277575,0.00013993,2]
[353769682,1740027041759,-153.659182,0.00013993,2]
[353769683,1740027041768,-153.659182,0.00013993,2]
[353769684,1740027041778,-681.942507,0.00013993,2]
[353769685,1740027041788,-681.942507,0.00013993,2]
[353769686,1740027041797,-151.0,0.00013993,2]
[353769687,1740027041807,-161.396341,0.00013993,2]
[353769688,1740027041817,-151.0,0.00013993,2]
[353769689,1740027041826,-161.396341,0.00013993,2]
[353769690,1740027041836,-1127.758018,0.00013993,2]
[353769691,1740027041845,-1127.758018,0.00013993,2]
[353769692,1740027041855,-674.791754,0.00013993,2]
[353769693,1740027041864,-674.791754,0.00013993,2]
[353769694,1740027041874,-13275.78028017,0.00013996,2]
[353769695,1740027041883,-64142.12303814,0.00014,5]
[353769696,1740027041892,-10659.91949103,0.00014,5]
[353769697,1740027041903,-521.9771787,0.00014,2]
[353769698,1740027041915,-167601.48318311,0.00014,2]
[353769699,1740027041926,-151.0,0.00014,2]
[353769700,1740027041935,-151.0,0.00014,2]
[353769701,1740027041946,-151.0,0.00014,2]
[353769702,1740027041956,-2247.277575,0.00014,2]
[353769703,1740027041965,-2247.277575,0.00014,2]
[353769704,1740027041974,-295.005091,0.00014,2]
[353769705,1740027041984,-295.005091,0.00014,2]
[353769706,1740027041996,-295.005091,0.00014,2]
[353769707,1740027042006,-295.005091,0.00014,2]
[353769708,1740027042016,-452.936363,0.00014,2]
[353769709,1740027042026,-452.936363,0.00014,2]
[353769710,1740027042036,-452.936363,0.00014,2]
[353769711,1740027042045,-452.936363,0.00014,2]
[353769712,1740027042055,-153.659182,0.00014,2]
[353769713,1740027042064,-153.659182,0.00014,2]
[353769714,1740027042074,-681.942507,0.00014,2]
[353769715,1740027042083,-681.942507,0.00014,2]
[353769716,1740027042093,-151.0,0.00014,2]
[353769717,1740027042102,-151.0,0.00014,2]
[353769718,1740027042112,-151.0,0.00014,2]
[353769719,1740027042121,-151.0,0.00014,2]
[353769720,1740027042131,-337.508987,0.00014,2]
[353769721,1740027042141,-175.461755,0.00014,2]
[353769722,1740027042150,-161.396341,0.00014,2]
[353769723,1740027042159,-151.0,0.00014,2]
[353769724,1740027042169,-161.396341,0.00014,2]
[353769725,1740027042179,-1127.758018,0.00014,2]
[353769726,1740027042189,-1127.758018,0.00014,2]
[353769727,1740027042199,-674.791754,0.00014,2]
[353769728,1740027042210,-674.791754,0.00014,2]
[353769729,1740027042220,-500.0,0.00014027,2]
[353769730,1740027042230,-500.0,0.00014027,2]
[353769731,1740027042239,-500.0,0.00014027,2]
[353769732,1740027042249,-500.0,0.00014027,2]
[353769733,1740027042259,-500.0,0.00014027,2]
[353769734,1740027042269,-500.0,0.00014027,2]
[353769735,1740027042278,-636.42,0.00014027,2]
[353769736,1740027042288,-500.0,0.00014027,2]
[353769737,1740027042298,-500.0,0.00014027,2]
[353769738,1740027042308,-500.0,0.00014027,2]
[353769739,1740027042318,-500.0,0.00014027,2]
[353769740,1740027042328,-208.55262479,0.00014027,2]
[353769741,1740027042337,-326.8092449,0.00014027,2]
[353769742,1740027042347,-463.51228679,0.00014027,2]
[353769743,1740027042357,-500.0,0.00014027,2]
[353769744,1740027042367,-500.0,0.00014027,2]
[353769745,1740027042376,-12203.92,0.00014027,2]
[353769746,1740027042385,-500.0,0.00014027,2]
[353769747,1740027042396,-539.65,0.00014027,2]
[353769748,1740027042411,-500.0,0.00014027,2]
[353769749,1740027042426,-509.41127313,0.00014027,2]
[353769750,1740027042436,-500.0,0.00014027,2]
[353769751,1740027042446,-500.0,0.00014027,2]
[353769752,1740027042455,-500.0,0.00014027,2]
[353769753,1740027042465,-500.0,0.00014027,2]
[353769754,1740027042474,-837.1,0.00014027,2]
[353769755,1740027042484,-500.0,0.00014027,2]
[353769756,1740027042494,-1207.33,0.00014027,2]
[353769757,1740027042504,-2010.43,0.00014027,2]
[353769758,1740027042513,-547.58769956,0.00014027,2]
[353769759,1740027042523,-500.0,0.00014027,2]
[353769760,1740027042533,-1103.86,0.00014027,2]
[353769761,1740027042543,-637.24,0.00014027,2]
[353769762,1740027042553,-1165.05,0.00014027,2]
[353769763,1740027042563,-500.0,0.00014027,2]
[353769764,1740027042573,-500.0,0.00014027,2]
[353769765,1740027042583,-500.0,0.00014027,2]
[353769766,1740027042601,-637.2,0.00014027,2]
[353769767,1740027042614,-3821.61,0.00014027,2]
[353769768,1740027042624,-847.71,0.00014027,2]
[353769769,1740027042634,-500.0,0.00014027,2]
[353769770,1740027042644,-533.64,0.00014027,2]
[353769771,1740027042654,-1752.28,0.00014027,2]
[353769772,1740027042664,-504.63,0.00014027,2]
[353769773,1740027042675,-511.57652539,0.00014027,2]
[353769774,1740027042686,-500.0,0.00014027,2]
[353769775,1740027042696,-960.38,0.00014027,2]
[353769776,1740027042706,-3824.79,0.00014027,2]
[353769777,1740027042716,-500.0,0.00014027,2]
[353769779,1740027042726,-1891.3,0.00014027,2]
[353769781,1740027042737,-981.89,0.00014027,2]
[353769783,1740027042747,-500.0,0.00014027,2]
[353769785,1740027042756,-272.4724354,0.00014082,2]
[353769786,1740027042766,-557.1710486,0.000141,2]
[353769787,1740027042776,-151.0,0.000141,2]
[353769788,1740027042786,-500.0,0.00014109,2]
[353769789,1740027042795,-500.0,0.00014109,2]
[353769790,1740027042805,-500.0,0.00014109,2]
[353769791,1740027042815,-500.0,0.00014109,2]
[353769793,1740027042825,-151.0,0.00014109,2]
[353769795,1740027042835,-500.0,0.00014109,2]
[353769797,1740027042845,-573.31237245,0.00014109,2]
[353769799,1740027042855,-500.0,0.00014109,2]
[353769801,1740027042865,-474.62772529,0.00014109,2]
[353769803,1740027042875,-500.0,0.00014109,2]
[353769805,1740027042886,-2247.277575,0.00014109,2]
[353769807,1740027042896,-2247.277575,0.00014109,2]
[353769809,1740027042910,-500.0,0.00014109,2]
[353769810,1740027042920,-500.0,0.00014109,2]
[353769811,1740027042930,-12203.92,0.00014109,2]
[353769812,1740027042942,-500.0,0.00014109,2]
[353769813,1740027042952,-539.65,0.00014109,2]
[353769815,1740027042962,-500.0,0.00014109,2]
[353769817,1740027042971,-500.0,0.00014109,2]
[353769819,1740027042982,-500.0,0.00014109,2]
[353769821,1740027042993,-500.0,0.00014109,2]
[353769823,1740027043003,-500.0,0.00014109,2]
[353769825,1740027043013,-837.1,0.00014109,2]
[353769827,1740027043022,-500.0,0.00014109,2]
[353769830,1740027043033,-1207.33,0.00014109,2]
[353769832,1740027043043,-2010.43,0.00014109,2]
[353769833,1740027043052,-500.0,0.00014109,2]
[353769835,1740027043062,-1103.86,0.00014109,2]
[353769837,1740027043071,-637.24,0.00014109,2]
[353769839,1740027043082,-1165.05,0.00014109,2]
[353769841,1740027043092,-500.0,0.00014109,2]
[353769843,1740027043102,-161.0878184,0.00014109,2]
[353769845,1740027043112,-500.0,0.00014109,2]
[353769847,1740027043122,-637.2,0.00014109,2]
[353769849,1740027043132,-3821.61,0.00014109,2]
[353769851,1740027043141,-847.71,0.00014109,2]
[353769853,1740027043150,-500.0,0.00014109,2]
[353769855,1740027043160,-1752.28,0.00014109,2]
[353769857,1740027043170,-500.0,0.00014109,2]
[353769859,1740027043180,-960.38,0.00014109,2]
[353769860,1740027043189,-3824.79,0.00014109,2]
[353769862,1740027043199,-500.0,0.00014109,2]
[353769863,1740027043210,-1891.3,0.00014109,2]
[353769864,1740027043220,-981.89,0.00014109,2]
[353769865,1740027043230,-500.0,0.00014109,2]
[353769866,1740027043239,-7438.69753278,0.00014113,2]
[353769867,1740027043249,-161.470327,0.00014172,2]
[353769868,1740027043259,-500.0,0.00014191,2]
[353769869,1740027043268,-500.0,0.00014191,2]
[353769870,1740027043278,-500.0,0.00014191,2]
[353769871,1740027043287,-500.0,0.00014191,2]
[353769872,1740027043297,-500.0,0.00014191,2]
[353769873,1740027043307,-500.0,0.00014191,2]
[353769874,1740027043317,-500.0,0.00014191,2]
[353769875,1740027043327,-153.659182,0.00014191,2]
[353769876,1740027043336,-153.659182,0.00014191,2]
[353769877,1740027043346,-681.942507,0.00014191,2]
[353769878,1740027043357,-681.942507,0.00014191,2]
[353769879,1740027043366,-500.0,0.00014191,2]
[353769880,1740027043376,-500.0,0.00014191,2]
[353769881,1740027043386,-12203.92,0.00014191,2]
[353769882,1740027043396,-500.0,0.00014191,2]
[353769883,1740027043406,-539.65,0.00014191,2]
[353769884,1740027043416,-500.0,0.00014191,2]
[353769885,1740027043426,-500.0,0.00014191,2]
[353769886,1740027043435,-500.0,0.00014191,2]
[353769887,1740027043445,-151.0,0.00014191,2]
[353769888,1740027043454,-151.0,0.00014191,2]
[353769889,1740027043464,-500.0,0.00014191,2]
[353769890,1740027043474,-163.72924038,0.00014191,2]
[353769891,1740027043484,-837.1,0.00014191,2]
[353769892,1740027043495,-500.0,0.00014191,2]
[353769893,1740027043504,-337.508987,0.00014191,2]
[353769894,1740027043514,-1207.33,0.00014191,2]
[353769895,1740027043525,-2010.43,0.00014191,2]
[353769896,1740027043535,-500.0,0.00014191,2]
[353769897,1740027043545,-1103.86,0.00014191,2]
[353769898,1740027043555,-637.24,0.00014191,2]
[353769899,1740027043564,-1165.05,0.00014191,2]
[353769900,1740027043574,-500.0,0.00014191,2]
[353769901,1740027043584,-161.396341,0.00014191,2]
[353769902,1740027043594,-151.0,0.00014191,2]
[353769903,1740027043604,-161.396341,0.00014191,2]
[353769904,1740027043614,-500.0,0.00014191,2]
[353769905,1740027043624,-637.2,0.00014191,2]
[353769906,1740027043634,-3821.61,0.00014191,2]
[353769907,1740027043643,-1127.758018,0.00014191,2]
[353769908,1740027043653,-847.71,0.00014191,2]
[353769909,1740027043662,-500.0,0.00014191,2]
[353769910,1740027043672,-1127.758018,0.00014191,2]
[353769911,1740027043682,-1752.28,0.00014191,2]
[353769912,1740027043692,-674.791754,0.00014191,2]
[353769913,1740027043842,-674.791754,0.00014191,2]
[353769914,1740027043852,-500.0,0.00014191,2]
[353769915,1740027043862,-960.38,0.00014191,2]
[353769916,1740027043871,-500.0,0.00014191,2]
[353769917,1740027043881,-3824.79,0.00014191,2]
[353769918,1740027043890,-1891.3,0.00014191,2]
[353769919,1740027043900,-981.89,0.00014191,2]
[353769920,1740027043913,-500.0,0.00014191,2]
[353769921,1740027043923,-420.0,0.00014195,2]
[353769922,1740027043940,-1630.1437088,0.00014209,2]
[353769923,1740027043951,-1000.0,0.00014221,2]
[353769924,1740027043961,-161.470327,0.00014238,2]
[353769925,1740027043970,-166.1,0.00014238,2]
[353769926,1740027043981,-272.4724354,0.00014241,2]
[353769927,1740027043990,-1007.9635722,0.00014247,2]
[353769928,1740027043999,-500.0,0.00014247,2]
[353769929,1740027044008,-295.005091,0.00014247,2]
[353769930,1740027044018,-295.005091,0.00014247,2]
[353769931,1740027044028,-452.936363,0.00014247,2]
[353769932,1740027044038,-452.936363,0.00014247,2]
[353769933,1740027044047,-710.690771,0.00014273,2]
[353769934,1740027044057,-623.19,0.00014273,2]
[353769935,1740027044066,-389.53401711,0.00014273,2]
[353769936,1740027044075,-500.0,0.00014273,2]
[353769937,1740027044087,-500.0,0.00014273,2]
[353769938,1740027044097,-500.0,0.00014273,2]
[353769939,1740027044107,-500.0,0.00014273,2]
[353769940,1740027044117,-240.12,0.00014273,2]
[353769941,1740027044127,-500.0,0.00014273,2]
[353769942,1740027044137,-12203.92,0.00014273,2]
[353769943,1740027044147,-644.62,0.00014273,2]
[353769944,1740027044157,-539.65,0.00014273,2]
[353769945,1740027044167,-518.34415604,0.00014273,2]
[353769946,1740027044177,-500.0,0.00014273,2]
[353769947,1740027044186,-500.0,0.00014273,2]
[353769948,1740027044195,-500.0,0.00014273,2]
[353769949,1740027044206,-837.1,0.00014273,2]
[353769950,1740027044215,-500.0,0.00014273,2]
[353769951,1740027044225,-1207.33,0.00014273,2]
[353769952,1740027044235,-2010.43,0.00014273,2]
[353769953,1740027044245,-500.0,0.00014273,2]
[353769954,1740027044255,-1103.86,0.00014273,2]
[353769955,1740027044264,-637.24,0.00014273,2]
[353769956,1740027044274,-1165.05,0.00014273,2]
[353769957,1740027044284,-500.0,0.00014273,2]
[353769958,1740027044293,-500.0,0.00014273,2]
[353769959,1740027044303,-637.2,0.00014273,2]
[353769960,1740027044312,-3821.61,0.00014273,2]
[353769961,1740027044321,-847.71,0.00014273,2]
[353769962,1740027044330,-500.0,0.00014273,2]
[353769963,1740027044340,-1752.28,0.00014273,2]
[353769964,1740027044350,-594.88,0.00014273,2]
[353769965,1740027044360,-960.38,0.00014273,2]
[353769966,1740027044369,-500.0,0.00014273,2]
[353769967,1740027044379,-3824.79,0.00014273,2]
[353769968,1740027044389,-1891.3,0.00014273,2]
[353769969,1740027044399,-981.89,0.00014273,2]
[353769970,1740027044408,-500.0,0.00014273,2]
[353769971,1740027044418,-151.0,0.000143,2]
[353769972,1740027044428,-151.0,0.000143,2]
[353769973,1740027044438,-161.470327,0.00014304,2]
[353769974,1740027044447,-500.0,0.00014356,2]
[353769975,1740027044457,-500.0,0.00014356,2]
[353769976,1740027044466,-554.70082549,0.00014356,2]
[353769977,1740027044476,-500.0,0.00014356,2]
[353769978,1740027044485,-12203.92,0.00014356,2]
[353769979,1740027044495,-539.65,0.00014356,2]
[353769980,1740027044505,-500.0,0.00014356,2]
[353769981,1740027044514,-500.0,0.00014356,2]
[353769982,1740027044524,-500.0,0.00014356,2]
[353769983,1740027044533,-837.1,0.00014356,2]
[353769984,1740027044543,-500.0,0.00014356,2]
[353769985,1740027044552,-1207.33,0.00014356,2]
[353769986,1740027044562,-2010.43,0.00014356,2]
[353769987,1740027044571,-500.0,0.00014356,2]
[353769988,1740027044581,-1103.86,0.00014356,2]
[353769989,1740027044591,-637.24,0.00014356,2]
[353769990,1740027044600,-1165.05,0.00014356,2]
[353769991,1740027044611,-500.0,0.00014356,2]
[353769992,1740027044620,-500.0,0.00014356,2]
[353769993,1740027044630,-637.2,0.00014356,2]
[353769994,1740027044639,-3821.61,0.00014356,2]
[353769995,1740027044649,-847.71,0.00014356,2]
[353769996,1740027044659,-500.0,0.00014356,2]
[353769997,1740027044668,-1752.28,0.00014356,2]
[353769998,1740027044678,-960.38,0.00014356,2]
[353769999,1740027044687,-486.47941237,0.00014356,2]
[353770000,1740027044697,-3824.79,0.00014356,2]
[353770001,1740027044706,-1891.3,0.00014356,2]
[353770002,1740027044716,-981.89,0.00014356,2]
[353770003,1740027044726,-500.0,0.00014356,2]
[353770004,1740027044735,-501.84852649,0.00014378,2]
[353770005,1740027044745,-501.84852649,0.00014378,2]
[353770006,1740027044754,-501.84852649,0.00014378,2]
[353770007,1740027044763,-501.84852649,0.00014378,2]
[353770008,1740027044772,-501.84852649,0.00014378,2]
[353770009,1740027044782,-501.84852649,0.00014378,2]
[353770010,1740027044792,-501.84852649,0.00014378,2]
[353770011,1740027044801,-501.84852649,0.00014378,2]
[353770012,1740027044811,-501.84852649,0.00014378,2]
[353770013,1740027044821,-501.84852649,0.00014378,2]
[353770014,1740027044831,-501.84852649,0.00014378,2]
[353770015,1740027044840,-501.84852649,0.00014378,2]
[353770016,1740027044849,-501.84852649,0.00014378,2]
[353770017,1740027044859,-501.84852649,0.00014378,2]
[353770018,1740027044868,-501.84852649,0.00014378,2]
[353770019,1740027044878,-501.84852649,0.00014378,2]
[353770020,1740027044887,-501.84852649,0.00014378,2]
[353770021,1740027044899,-501.84852649,0.00014378,2]
[353770022,1740027044910,-501.84852649,0.00014378,2]
[353770023,1740027044919,-501.84,0.00014378,2]
[353770024,1740027044930,-152.8371793,0.00014378,2]
[353770025,1740027044940,-152.8371793,0.00014378,2]
[353770026,1740027044950,-152.8371793,0.00014378,2]
[353770027,1740027044960,-152.8371793,0.00014378,2]
[353770028,1740027044969,-152.8371793,0.00014378,2]
[353770029,1740027044978,-152.8371793,0.00014378,2]
[353770030,1740027044989,-152.8371793,0.00014378,2]
[353770031,1740027044998,-152.83,0.00014378,2]
[353770032,1740027045007,-4577.21861409,0.00014399,2]
[353770033,1740027045017,-151.0,0.000144,2]
[353770034,1740027045026,-272.4724354,0.000144,2]
[353770035,1740027045036,-500.0,0.00014438,2]
[353770036,1740027045045,-500.0,0.00014438,2]
[353770037,1740027045054,-2247.277575,0.00014438,2]
[353770038,1740027045064,-2247.277575,0.00014438,2]
[353770039,1740027045074,-500.0,0.00014438,2]
[353770040,1740027045083,-12203.92,0.00014438,2]
[353770041,1740027045093,-539.65,0.00014438,2]
[353770042,1740027045102,-500.0,0.00014438,2]
[353770043,1740027045112,-151.0,0.00014438,2]
[353770044,1740027045122,-500.0,0.00014438,2]
[353770045,1740027045132,-151.0,0.00014438,2]
[353770046,1740027045141,-500.0,0.00014438,2]
[353770047,1740027045150,-837.1,0.00014438,2]
[353770048,1740027045159,-500.0,0.00014438,2]
[353770049,1740027045169,-337.508987,0.00014438,2]
[353770050,1740027045178,-1207.33,0.00014438,2]
[353770051,1740027045188,-2010.43,0.00014438,2]
[353770052,1740027045197,-500.0,0.00014438,2]
[353770053,1740027045207,-1103.86,0.00014438,2]
[353770054,1740027045216,-637.24,0.00014438,2]
[353770055,1740027045226,-1165.05,0.00014438,2]
[353770056,1740027045236,-500.0,0.00014438,2]
[353770057,1740027045246,-161.396341,0.00014438,2]
[353770058,1740027045255,-151.0,0.00014438,2]
[353770059,1740027045265,-161.396341,0.00014438,2]
[353770060,1740027045275,-500.0,0.00014438,2]
[353770061,1740027045286,-637.2,0.00014438,2]
[353770062,1740027045296,-3821.61,0.00014438,2]
[353770063,1740027045306,-1127.758018,0.00014438,2]
[353770064,1740027045316,-847.71,0.00014438,2]
[353770065,1740027045326,-1127.758018,0.00014438,2]
[353770066,1740027045336,-500.0,0.00014438,2]
[353770067,1740027045345,-1752.28,0.00014438,2]
[353770068,1740027045355,-674.791754,0.00014438,2]
[353770069,1740027045365,-674.791754,0.00014438,2]
[353770070,1740027045374,-960.38,0.00014438,2]
[353770071,1740027045384,-3824.79,0.00014438,2]
[353770072,1740027045393,-1891.3,0.00014438,2]
[353770073,1740027045403,-981.89,0.00014438,2]
[353770074,1740027045417,-500.0,0.00014438,2]
[353770075,1740027045427,-700.0,0.00014438,2]
[353770076,1740027045437,-500.0,0.00014473,2]
[353770077,1740027045446,-500.0,0.00014473,2]
[353770078,1740027045456,-500.0,0.00014473,2]
[353770079,1740027045466,-500.0,0.00014473,2]
[353770080,1740027045475,-500.60642967,0.00014473,2]
[353770081,1740027045485,-185.32488158,0.00014473,2]
[353770082,1740027045494,-710.690771,0.00014478,2]
[353770083,1740027045503,-151.0,0.00014478,2]
[353770084,1740027045513,-295.005091,0.00014478,2]
[353770085,1740027045522,-295.005091,0.00014478,2]
[353770086,1740027045532,-452.936363,0.00014478,2]
[353770087,1740027045542,-452.936363,0.00014478,2]
[353770088,1740027045552,-153.659182,0.00014478,2]
[353770089,1740027045562,-153.659182,0.00014478,2]
[353770090,1740027045571,-681.942507,0.00014478,2]
[353770091,1740027045581,-681.942507,0.00014478,2]
[353770092,1740027045590,-473.0,0.00014478,2]
[353770093,1740027045599,-473.0,0.00014478,2]
[353770094,1740027045609,-473.0,0.00014478,2]
[353770095,1740027045619,-473.0,0.00014478,2]
[353770096,1740027045629,-473.0,0.00014478,2]
[353770097,1740027045638,-473.0,0.00014478,2]
[353770098,1740027045648,-473.0,0.00014478,2]
[353770099,1740027045658,-473.0,0.00014478,2]
[353770100,1740027045667,-473.0,0.00014478,2]
[353770101,1740027045677,-473.0,0.00014478,2]
[353770102,1740027045686,-473.0,0.00014478,2]
[353770103,1740027045695,-473.0,0.00014478,2]
[353770104,1740027045705,-473.0,0.00014478,2]
[353770105,1740027045715,-473.0,0.00014478,2]
[353770107,1740027045725,-473.0,0.00014478,2]
[353770109,1740027045735,-473.0,0.00014478,2]
[353770110,1740027045744,-473.0,0.00014478,2]
[353770111,1740027045753,-337.0,0.00014478,2]
[353770112,1740027045763,-337.0,0.00014478,2]
[353770113,1740027045772,-337.0,0.00014478,2]
[353770114,1740027045782,-337.0,0.00014478,2]
[353770115,1740027045791,-337.0,0.00014478,2]
[353770116,1740027045800,-337.0,0.00014478,2]
[353770117,1740027045809,-337.0,0.00014478,2]
[353770118,1740027045819,-337.0,0.00014478,2]
[353770119,1740027045828,-337.0,0.00014478,2]
[353770120,1740027045837,-337.0,0.00014478,2]
[353770121,1740027045847,-337.0,0.00014478,2]
[353770122,1740027045856,-337.0,0.00014478,2]
[353770124,1740027045865,-337.0,0.00014478,2]
[353770126,1740027045874,-337.0,0.00014478,2]
[353770128,1740027045883,-337.0,0.00014478,2]
[353770129,1740027045892,-337.0,0.00014478,2]
[353770131,1740027045904,-337.0,0.00014478,2]
[353770133,1740027045915,-473.0,0.00014478,2]
[353770135,1740027045924,-473.0,0.00014478,2]
[353770137,1740027045934,-473.0,0.00014478,2]
[353770139,1740027045944,-473.0,0.00014478,2]
[353770141,1740027045954,-473.0,0.00014478,2]
[353770143,1740027045963,-473.0,0.00014478,2]
[353770145,1740027045972,-473.0,0.00014478,2]
[353770147,1740027045982,-473.0,0.00014478,2]
[353770149,1740027045992,-473.0,0.00014478,2]
[353770151,1740027046001,-473.0,0.00014478,2]
[353770153,1740027046010,-473.0,0.00014478,2]
[353770154,1740027046020,-473.0,0.00014478,2]
[353770156,1740027046029,-473.0,0.00014478,2]
[353770158,1740027046038,-473.0,0.00014478,2]
[353770160,1740027046047,-337.0,0.00014478,2]
[353770162,1740027046056,-337.0,0.00014478,2]
[353770164,1740027046066,-337.0,0.00014478,2]
[353770166,1740027046075,-337.0,0.00014478,2]
[353770168,1740027046085,-337.0,0.00014478,2]
[353770170,1740027046094,-337.0,0.00014478,2]
[353770172,1740027046103,-337.0,0.00014478,2]
[353770174,1740027046113,-337.0,0.00014478,2]
[353770176,1740027046122,-337.0,0.00014478,2]
[353770178,1740027046131,-337.0,0.00014478,2]
[353770180,1740027046141,-337.0,0.00014478,2]
[353770182,1740027046150,-337.0,0.00014478,2]
[353770184,1740027046159,-337.0,0.00014478,2]
[353770186,1740027046168,-337.0,0.00014478,2]
[353770188,1740027046178,-473.0,0.00014478,2]
[353770190,1740027046187,-473.0,0.00014478,2]
[353770192,1740027046196,-473.0,0.00014478,2]
[353770194,1740027046205,-473.0,0.00014478,2]
[353770196,1740027046214,-473.0,0.00014478,2]
[353770198,1740027046224,-473.0,0.00014478,2]
[353770200,1740027046233,-473.0,0.00014478,2]
[353770202,1740027046242,-473.0,0.00014478,2]
[353770204,1740027046251,-473.0,0.00014478,2]
[353770206,1740027046260,-473.0,0.00014478,2]
[353770208,1740027046270,-473.0,0.00014478,2]
[353770210,1740027046279,-473.0,0.00014478,2]
[353770212,1740027046288,-473.0,0.00014478,2]
[353770214,1740027046297,-473.0,0.00014478,2]
[353770215,1740027046306,-337.0,0.00014478,2]
[353770217,1740027046315,-337.0,0.00014478,2]
[353770219,1740027046325,-337.0,0.00014478,2]
[353770221,1740027046334,-337.0,0.00014478,2]
[353770224,1740027046345,-337.0,0.00014478,2]
[353770226,1740027046354,-337.0,0.00014478,2]
[353770228,1740027046364,-337.0,0.00014478,2]
[353770230,1740027046373,-337.0,0.00014478,2]
[353770232,1740027046383,-337.0,0.00014478,2]
[353770233,1740027046392,-337.0,0.00014478,2]
[353770235,1740027046401,-337.0,0.00014478,2]
[353770238,1740027046410,-337.0,0.00014478,2]
[353770240,1740027046420,-337.0,0.00014478,2]
[353770242,1740027046429,-337.0,0.00014478,2]
[353770244,1740027046439,-473.0,0.00014478,2]
[353770246,1740027046448,-473.0,0.00014478,2]
[353770247,1740027046458,-473.0,0.00014478,2]